[Event "Titled Tuesday Blitz February 07 Late 2023"]
[White "Bolourchifard, Farzad"]
[Black "Ozates, Tuna"]
[WhiteFideId "12510084"]
[BlackFideId "6354521"]
[WhiteElo "2292"]
[BlackElo "2251"]
[Result "1-0"]
[Round "11"]
[TimeControl "180+2"]
[Date "2023.02.07"]
[WhiteClock "0:00:08"]
[BlackClock "0:00:03"]

1. e4 {[%clk 0:03:00]}  e5 {[%clk 0:02:59]} 2. Nf3 {[%clk 0:03:00]}  Nc6 {[%clk 0:03:00]} 3. Bc4 {[%clk 0:03:00]}  Bc5 {[%clk 0:03:00]} 4. O-O {[%clk 0:03:00]}  Nf6 {[%clk 0:02:58]} 5. d3 {[%clk 0:03:00]}  d6 {[%clk 0:02:51]} 6. c3 {[%clk 0:02:59]}  a6 {[%clk 0:02:49]} 7. Bb3 {[%clk 0:02:59]}  Ba7 {[%clk 0:02:49]} 8. Re1 {[%clk 0:02:58]}  h6 {[%clk 0:02:48]} 9. Nbd2 {[%clk 0:02:58]}  Ne7 {[%clk 0:02:47]} 10. Nf1 {[%clk 0:02:58]}  Ng6 {[%clk 0:02:48]} 11. Ng3 {[%clk 0:02:51]}  O-O {[%clk 0:02:48]} 12. h3 {[%clk 0:02:46]}  Be6 {[%clk 0:02:41]} 13. d4 {[%clk 0:02:44]}  Re8 {[%clk 0:02:05]} 14. Bxe6 {[%clk 0:02:14]}  Rxe6 {[%clk 0:01:57]} 15. Qb3 {[%clk 0:02:05]}  exd4 {[%clk 0:01:48]} 16. Nxd4 {[%clk 0:01:58]}  Bxd4 {[%clk 0:01:37]} 17. cxd4 {[%clk 0:01:59]}  c5 {[%clk 0:01:25]} 18. d5 {[%clk 0:01:38]}  Re8 {[%clk 0:01:13]} 19. Qxb7 {[%clk 0:01:20]}  Qa5 {[%clk 0:01:01]} 20. Be3 {[%clk 0:01:15]}  Rab8 {[%clk 0:01:00]} 21. Qc6 {[%clk 0:01:10]}  Rb6 {[%clk 0:00:42]} 22. Qc7 {[%clk 0:01:09]}  Re7 {[%clk 0:00:31]} 23. Qc8+ {[%clk 0:01:02]}  Re8 {[%clk 0:00:31]} 24. Qf5 {[%clk 0:01:02]}  Rxb2 {[%clk 0:00:11]} 25. Bxh6 {[%clk 0:00:38]}  Rxa2 {[%clk 0:00:12]} 26. Rab1 {[%clk 0:00:38]}  Re5 {[%clk 0:00:10]} 27. Qc8+ {[%clk 0:00:35]}  Kh7 {[%clk 0:00:10]} 28. Be3 {[%clk 0:00:27]}  Nxe4 {[%clk 0:00:08]} 29. Nxe4 {[%clk 0:00:27]}  Rxe4 {[%clk 0:00:09]} 30. Qf5 {[%clk 0:00:26]}  Re5 {[%clk 0:00:09]} 31. Qxf7 {[%clk 0:00:25]}  Qd8 {[%clk 0:00:08]} 32. Rb7 {[%clk 0:00:23]}  Qf8 {[%clk 0:00:08]} 33. Qd7 {[%clk 0:00:20]}  Rxe3 {[%clk 0:00:08]} 34. Rf1 {[%clk 0:00:19]}  Re7 {[%clk 0:00:07]} 35. Qc6 {[%clk 0:00:17]}  Rxb7 {[%clk 0:00:08]} 36. Qxb7 {[%clk 0:00:18]}  Qf5 {[%clk 0:00:07]} 37. Qc6 {[%clk 0:00:17]}  Qe5 {[%clk 0:00:06]} 38. Qa8 {[%clk 0:00:11]}  Nf4 {[%clk 0:00:06]} 39. Qd8 {[%clk 0:00:08]}  Qe4 {[%clk 0:00:06]} 40. Qh4+ {[%clk 0:00:07]}  Kg8 {[%clk 0:00:06]} 41. Qd8+ {[%clk 0:00:08]}  Kf7 {[%clk 0:00:07]} 42. Qd7+ {[%clk 0:00:08]}  Kg6 {[%clk 0:00:06]} 43. Qg4+ {[%clk 0:00:09]}  Kf6 {[%clk 0:00:07]} 44. Qh4+ {[%clk 0:00:09]}  g5 {[%clk 0:00:07]} 45. Qh6+ {[%clk 0:00:09]}  Ng6 {[%clk 0:00:06]} 46. Qh7 {[%clk 0:00:08]}  Re2 {[%clk 0:00:05]} 47. Qd7 {[%clk 0:00:08]}  Re1 {[%clk 0:00:05]} 48. Qxd6+ {[%clk 0:00:09]}  Kg7 {[%clk 0:00:06]} 49. Qxc5 {[%clk 0:00:07]}  Rxf1+ {[%clk 0:00:06]} 50. Kxf1 {[%clk 0:00:08]}  Nf4 {[%clk 0:00:07]} 51. Qc3+ {[%clk 0:00:08]}  Kg6 {[%clk 0:00:07]} 52. Qc6+ {[%clk 0:00:07]}  Kh5 {[%clk 0:00:07]} 53. g4+ {[%clk 0:00:07]}  Kh4 {[%clk 0:00:02]} 54. Qh6+ {[%clk 0:00:08]}  Nh5 {[%clk 0:00:03]} 55. Qxh5# {[%clk 0:00:08]} 1-0


[Site "https://www.chess.com"]

[Event "Titled Tuesday Blitz February 07 Late 2023"]
[White "Dubov, Daniil"]
[Black "Kalogeris, Ioannis"]
[WhiteFideId "24126055"]
[BlackFideId "4239563"]
[WhiteElo "2708"]
[BlackElo "2423"]
[Result "1/2-1/2"]
[Round "11"]
[TimeControl "180+2"]
[Date "2023.02.07"]
[WhiteClock "0:01:53"]
[BlackClock "0:00:44"]

1. e4 {[%clk 0:03:00]}  e5 {[%clk 0:03:00]} 2. f4 {[%clk 0:02:59]}  d5 {[%clk 0:02:36]} 3. exd5 {[%clk 0:02:40]}  e4 {[%clk 0:02:30]} 4. d3 {[%clk 0:02:38]}  Nf6 {[%clk 0:02:23]} 5. dxe4 {[%clk 0:02:35]}  Nxe4 {[%clk 0:02:23]} 6. Bb5+ {[%clk 0:02:08]}  c6 {[%clk 0:02:16]} 7. Qe2 {[%clk 0:02:09]}  f5 {[%clk 0:01:56]} 8. dxc6 {[%clk 0:02:09]}  bxc6 {[%clk 0:01:49]} 9. Bd3 {[%clk 0:02:08]}  Bc5 {[%clk 0:01:40]} 10. Nf3 {[%clk 0:02:09]}  O-O {[%clk 0:01:31]} 11. Be3 {[%clk 0:02:09]}  Nd7 {[%clk 0:01:21]} 12. Bc4+ {[%clk 0:01:58]}  Kh8 {[%clk 0:01:20]} 13. O-O {[%clk 0:01:59]}  Qb6 {[%clk 0:01:19]} 14. Bxc5 {[%clk 0:01:59]}  Ndxc5 {[%clk 0:01:17]} 15. Kh1 {[%clk 0:01:59]}  Qxb2 {[%clk 0:01:12]} 16. Ne5 {[%clk 0:01:53]}  Qxa1 {[%clk 0:01:08]} 17. Qh5 {[%clk 0:01:51]}  Be6 {[%clk 0:00:53]} 18. Nd2 {[%clk 0:01:50]}  Qd4 {[%clk 0:00:49]} 19. Rf3 {[%clk 0:01:48]}  Nf2+ {[%clk 0:00:45]} 20. Rxf2 {[%clk 0:01:48]}  Qxf2 {[%clk 0:00:45]} 21. Ng6+ {[%clk 0:01:48]}  Kg8 {[%clk 0:00:45]} 22. Ne7+ {[%clk 0:01:49]}  Kh8 {[%clk 0:00:44]} 23. Ng6+ {[%clk 0:01:49]}  Kg8 {[%clk 0:00:44]} 24. Bxe6+ {[%clk 0:01:50]}  Nxe6 {[%clk 0:00:44]} 25. Ne7+ {[%clk 0:01:51]}  Kh8 {[%clk 0:00:44]} 26. Ng6+ {[%clk 0:01:51]}  Kg8 {[%clk 0:00:45]} 27. Ne7+ {[%clk 0:01:52]}  Kh8 {[%clk 0:00:44]} 28. Ng6+ {[%clk 0:01:53]}  Kg8 {[%clk 0:00:44]} 1/2-1/2


[Site "https://www.chess.com"]

[Event "Titled Tuesday Blitz February 07 Late 2023"]
[White "Makridis, Dimitrios"]
[Black "Duda, Jan-Krzysztof"]
[WhiteFideId "25864475"]
[BlackFideId "1170546"]
[WhiteElo "2356"]
[BlackElo "2724"]
[Result "1/2-1/2"]
[Round "11"]
[TimeControl "180+2"]
[Date "2023.02.07"]
[WhiteClock "0:00:07"]
[BlackClock "0:00:04"]

1. e4 {[%clk 0:03:00]}  g6 {[%clk 0:03:00]} 2. d4 {[%clk 0:03:00]}  d6 {[%clk 0:03:01]} 3. Nc3 {[%clk 0:03:00]}  a6 {[%clk 0:03:02]} 4. f4 {[%clk 0:03:01]}  h6 {[%clk 0:03:03]} 5. Nf3 {[%clk 0:03:01]}  b6 {[%clk 0:03:03]} 6. Bd3 {[%clk 0:03:02]}  e6 {[%clk 0:03:04]} 7. O-O {[%clk 0:03:02]}  c6 {[%clk 0:03:04]} 8. Qe2 {[%clk 0:03:01]}  f6 {[%clk 0:03:05]} 9. f5 {[%clk 0:03:00]}  g5 {[%clk 0:03:01]} 10. fxe6 {[%clk 0:03:00]}  Bxe6 {[%clk 0:03:02]} 11. e5 {[%clk 0:03:00]}  fxe5 {[%clk 0:02:49]} 12. dxe5 {[%clk 0:02:58]}  d5 {[%clk 0:02:50]} 13. Nd4 {[%clk 0:02:58]}  Bc5 {[%clk 0:02:50]} 14. Be3 {[%clk 0:02:54]}  Bxd4 {[%clk 0:02:50]} 15. Bxd4 {[%clk 0:02:55]}  c5 {[%clk 0:02:50]} 16. Bg6+ {[%clk 0:02:54]}  Kd7 {[%clk 0:02:50]} 17. Bf5 {[%clk 0:02:41]}  Bxf5 {[%clk 0:02:34]} 18. Rxf5 {[%clk 0:02:27]}  Kc6 {[%clk 0:02:30]} 19. e6 {[%clk 0:02:26]}  Ne7 {[%clk 0:02:29]} 20. Rxd5 {[%clk 0:02:17]}  Nxd5 {[%clk 0:02:26]} 21. Bxh8 {[%clk 0:02:17]}  Qxh8 {[%clk 0:02:16]} 22. Rd1 {[%clk 0:01:56]}  Nxc3 {[%clk 0:01:25]} 23. Qf3+ {[%clk 0:01:55]}  Kc7 {[%clk 0:01:21]} 24. bxc3 {[%clk 0:01:55]}  Qe5 {[%clk 0:01:21]} 25. Qxa8 {[%clk 0:01:43]}  Qe3+ {[%clk 0:01:21]} 26. Kh1 {[%clk 0:01:43]}  Qxe6 {[%clk 0:01:22]} 27. Qa7+ {[%clk 0:01:34]}  Kc8 {[%clk 0:01:22]} 28. Rf1 {[%clk 0:01:33]}  Qd6 {[%clk 0:01:16]} 29. a4 {[%clk 0:01:18]}  a5 {[%clk 0:01:15]} 30. h3 {[%clk 0:01:16]}  Nd7 {[%clk 0:01:10]} 31. Qa8+ {[%clk 0:01:15]}  Kc7 {[%clk 0:01:10]} 32. c4 {[%clk 0:01:02]}  Qd4 {[%clk 0:00:36]} 33. Qa7+ {[%clk 0:00:36]}  Kd6 {[%clk 0:00:34]} 34. Qb7 {[%clk 0:00:30]}  h5 {[%clk 0:00:20]} 35. Qf3 {[%clk 0:00:21]}  g4 {[%clk 0:00:20]} 36. hxg4 {[%clk 0:00:15]}  hxg4 {[%clk 0:00:21]} 37. Qg3+ {[%clk 0:00:14]}  Kc6 {[%clk 0:00:20]} 38. Rf4 {[%clk 0:00:12]}  Qa1+ {[%clk 0:00:14]} 39. Kh2 {[%clk 0:00:11]}  Qxa4 {[%clk 0:00:14]} 40. Qxg4 {[%clk 0:00:09]}  Qxc2 {[%clk 0:00:13]} 41. Qe6+ {[%clk 0:00:08]}  Kc7 {[%clk 0:00:14]} 42. Rf7 {[%clk 0:00:07]}  Qd2 {[%clk 0:00:13]} 43. Qe5+ {[%clk 0:00:06]}  Kc6 {[%clk 0:00:06]} 44. Qe4+ {[%clk 0:00:06]}  Kc7 {[%clk 0:00:05]} 45. Qf4+ {[%clk 0:00:06]}  Qxf4+ {[%clk 0:00:05]} 46. Rxf4 {[%clk 0:00:07]}  a4 {[%clk 0:00:06]} 47. g4 {[%clk 0:00:07]}  Ne5 {[%clk 0:00:05]} 48. g5 {[%clk 0:00:06]}  Kd6 {[%clk 0:00:05]} 49. Kg3 {[%clk 0:00:06]}  a3 {[%clk 0:00:04]} 50. Rf6+ {[%clk 0:00:07]}  Kc7 {[%clk 0:00:03]} 51. Rf2 {[%clk 0:00:05]}  Kd7 {[%clk 0:00:03]} 52. Ra2 {[%clk 0:00:02]}  Nxc4 {[%clk 0:00:03]} 53. g6 {[%clk 0:00:02]}  Ke7 {[%clk 0:00:03]} 54. Rf2 {[%clk 0:00:02]}  a2 {[%clk 0:00:01]} 55. Rxa2 {[%clk 0:00:01]}  Kf6 {[%clk 0:00:01]} 56. Kf4 {[%clk 0:00:01]}  Kxg6 {[%clk 0:00:01]} 57. Rh2 {[%clk 0:00:02]}  Kf6 {[%clk 0:00:01]} 58. Ke4 {[%clk 0:00:03]}  Ke6 {[%clk 0:00:01]} 59. Rh6+ {[%clk 0:00:03]}  Kd7 {[%clk 0:00:02]} 60. Kd5 {[%clk 0:00:04]}  Ne3+ {[%clk 0:00:02]} 61. Ke4 {[%clk 0:00:05]}  Nc4 {[%clk 0:00:02]} 62. Kd5 {[%clk 0:00:04]}  Ne3+ {[%clk 0:00:02]} 63. Ke4 {[%clk 0:00:05]}  Nc2 {[%clk 0:00:01]} 64. Rxb6 {[%clk 0:00:04]}  Nb4 {[%clk 0:00:02]} 65. Rh6 {[%clk 0:00:04]}  Kc7 {[%clk 0:00:02]} 66. Ke3 {[%clk 0:00:04]}  Nd5+ {[%clk 0:00:02]} 67. Kd3 {[%clk 0:00:03]}  Nb6 {[%clk 0:00:03]} 68. Kc3 {[%clk 0:00:03]}  Kb7 {[%clk 0:00:03]} 69. Rh5 {[%clk 0:00:03]}  Kc6 {[%clk 0:00:04]} 70. Rh6+ {[%clk 0:00:04]}  Kb5 {[%clk 0:00:05]} 71. Kd3 {[%clk 0:00:04]}  Nd5 {[%clk 0:00:05]} 72. Ke4 {[%clk 0:00:04]}  Kc4 {[%clk 0:00:05]} 73. Ke5 {[%clk 0:00:04]}  Nb4 {[%clk 0:00:04]} 74. Rh4+ {[%clk 0:00:04]}  Kd3 {[%clk 0:00:03]} 75. Kd6 {[%clk 0:00:05]}  c4 {[%clk 0:00:04]} 76. Kc5 {[%clk 0:00:05]}  Na6+ {[%clk 0:00:03]} 77. Kb5 {[%clk 0:00:06]}  Nc7+ {[%clk 0:00:04]} 78. Kb4 {[%clk 0:00:06]}  Nd5+ {[%clk 0:00:04]} 79. Kc5 {[%clk 0:00:06]}  Ne3 {[%clk 0:00:04]} 80. Rd4+ {[%clk 0:00:06]}  Kc3 {[%clk 0:00:04]} 81. Re4 {[%clk 0:00:07]}  Kd2 {[%clk 0:00:03]} 82. Kd4 {[%clk 0:00:05]}  c3 {[%clk 0:00:02]} 83. Rxe3 {[%clk 0:00:06]}  c2 {[%clk 0:00:02]} 84. Rd3+ {[%clk 0:00:07]}  Ke2 {[%clk 0:00:03]} 85. Rc3 {[%clk 0:00:07]}  Kd2 {[%clk 0:00:03]} 86. Rxc2+ {[%clk 0:00:07]}  Kxc2 {[%clk 0:00:04]} 1/2-1/2


[Site "https://www.chess.com"]

[Event "Titled Tuesday Blitz February 07 Late 2023"]
[White "Dourerassou, Jonathan"]
[Black "Deac, Bogdan-Daniel"]
[WhiteFideId "628050"]
[BlackFideId "1226380"]
[WhiteElo "2414"]
[BlackElo "2700"]
[Result "1-0"]
[Round "11"]
[TimeControl "180+2"]
[Date "2023.02.07"]
[WhiteClock "0:00:40"]
[BlackClock "0:00:02"]

1. e4 {[%clk 0:03:00]}  c6 {[%clk 0:02:53]} 2. Nc3 {[%clk 0:02:59]}  d5 {[%clk 0:02:53]} 3. Nf3 {[%clk 0:03:00]}  dxe4 {[%clk 0:02:52]} 4. Nxe4 {[%clk 0:03:01]}  Nf6 {[%clk 0:02:52]} 5. Qe2 {[%clk 0:03:01]}  Na6 {[%clk 0:02:52]} 6. c3 {[%clk 0:02:54]}  Bg4 {[%clk 0:02:40]} 7. Nxf6+ {[%clk 0:02:52]}  gxf6 {[%clk 0:02:40]} 8. Qe4 {[%clk 0:02:52]}  Qd7 {[%clk 0:02:31]} 9. d4 {[%clk 0:02:47]}  Nc7 {[%clk 0:02:26]} 10. Be2 {[%clk 0:02:43]}  Bf5 {[%clk 0:02:25]} 11. Qh4 {[%clk 0:02:37]}  Rg8 {[%clk 0:02:24]} 12. O-O {[%clk 0:02:26]}  Ne6 {[%clk 0:02:06]} 13. h3 {[%clk 0:01:57]}  h6 {[%clk 0:01:51]} 14. Re1 {[%clk 0:01:49]}  Ng5 {[%clk 0:01:44]} 15. Nxg5 {[%clk 0:01:20]}  hxg5 {[%clk 0:01:44]} 16. Qg3 {[%clk 0:01:20]}  e6 {[%clk 0:01:44]} 17. Bg4 {[%clk 0:01:16]}  Bd6 {[%clk 0:01:20]} 18. Qf3 {[%clk 0:01:16]}  O-O-O {[%clk 0:01:15]} 19. Be3 {[%clk 0:01:13]}  Bxg4 {[%clk 0:01:02]} 20. hxg4 {[%clk 0:01:12]}  f5 {[%clk 0:01:02]} 21. d5 {[%clk 0:01:08]}  exd5 {[%clk 0:00:22]} 22. Qxf5 {[%clk 0:00:57]}  Qxf5 {[%clk 0:00:21]} 23. gxf5 {[%clk 0:00:58]}  Kc7 {[%clk 0:00:22]} 24. g4 {[%clk 0:00:54]}  Rh8 {[%clk 0:00:21]} 25. Kg2 {[%clk 0:00:49]}  Rh4 {[%clk 0:00:17]} 26. Kf3 {[%clk 0:00:45]}  Rh3+ {[%clk 0:00:10]} 27. Kg2 {[%clk 0:00:45]}  Rh2+ {[%clk 0:00:10]} 28. Kf3 {[%clk 0:00:45]}  f6 {[%clk 0:00:06]} 29. Rh1 {[%clk 0:00:44]}  Rdh8 {[%clk 0:00:05]} 30. Rxh2 {[%clk 0:00:44]}  Rxh2 {[%clk 0:00:06]} 31. Bd4 {[%clk 0:00:43]}  Be5 {[%clk 0:00:03]} 32. Re1 {[%clk 0:00:40]}  Kd6 {[%clk 0:00:02]} 33. Bxa7 {[%clk 0:00:40]} 1-0


[Site "https://www.chess.com"]

[Event "Titled Tuesday Blitz February 07 Late 2023"]
[White "Makhnev, Denis"]
[Black "Koziorowicz, Michal"]
[WhiteFideId "13707647"]
[BlackFideId "21809194"]
[WhiteElo "2483"]
[BlackElo "2307"]
[Result "1-0"]
[Round "11"]
[TimeControl "180+2"]
[Date "2023.02.07"]
[WhiteClock "0:00:04"]
[BlackClock "0:00:13"]

1. d4 {[%clk 0:03:00]}  Nf6 {[%clk 0:02:57]} 2. c4 {[%clk 0:03:01]}  e6 {[%clk 0:02:57]} 3. Nf3 {[%clk 0:03:01]}  c5 {[%clk 0:02:57]} 4. d5 {[%clk 0:03:01]}  b5 {[%clk 0:02:57]} 5. dxe6 {[%clk 0:03:00]}  fxe6 {[%clk 0:02:58]} 6. cxb5 {[%clk 0:03:00]}  d5 {[%clk 0:02:59]} 7. e3 {[%clk 0:03:00]}  Bd6 {[%clk 0:02:58]} 8. b3 {[%clk 0:03:00]}  O-O {[%clk 0:02:59]} 9. Bb2 {[%clk 0:03:00]}  Nbd7 {[%clk 0:02:59]} 10. a4 {[%clk 0:03:00]}  Bb7 {[%clk 0:02:58]} 11. Nbd2 {[%clk 0:02:57]}  e5 {[%clk 0:02:58]} 12. e4 {[%clk 0:02:48]}  dxe4 {[%clk 0:02:32]} 13. Ng5 {[%clk 0:02:32]}  e3 {[%clk 0:02:30]} 14. fxe3 {[%clk 0:01:52]}  Nd5 {[%clk 0:02:30]} 15. Nde4 {[%clk 0:01:47]}  Bc7 {[%clk 0:02:23]} 16. Bc4 {[%clk 0:01:26]}  Ba5+ {[%clk 0:02:20]} 17. Bc3 {[%clk 0:01:05]}  Bxc3+ {[%clk 0:02:00]} 18. Nxc3 {[%clk 0:01:06]}  Qxg5 {[%clk 0:02:00]} 19. Bxd5+ {[%clk 0:01:06]}  Bxd5 {[%clk 0:01:59]} 20. Qxd5+ {[%clk 0:01:07]}  Kh8 {[%clk 0:01:59]} 21. O-O-O {[%clk 0:01:01]}  Nb6 {[%clk 0:01:50]} 22. Qe4 {[%clk 0:00:59]}  Rf2 {[%clk 0:01:45]} 23. a5 {[%clk 0:00:52]}  Qxg2 {[%clk 0:00:57]} 24. Qxg2 {[%clk 0:00:17]}  Rxg2 {[%clk 0:00:58]} 25. axb6 {[%clk 0:00:18]}  axb6 {[%clk 0:00:59]} 26. Na4 {[%clk 0:00:10]}  h5 {[%clk 0:00:54]} 27. Kb1 {[%clk 0:00:09]}  c4 {[%clk 0:00:54]} 28. Nxb6 {[%clk 0:00:10]}  Ra3 {[%clk 0:00:53]} 29. Nxc4 {[%clk 0:00:05]}  Rxb3+ {[%clk 0:00:53]} 30. Ka1 {[%clk 0:00:06]}  Rxb5 {[%clk 0:00:51]} 31. Rd2 {[%clk 0:00:06]}  Rg6 {[%clk 0:00:50]} 32. Rb2 {[%clk 0:00:03]}  Rc5 {[%clk 0:00:47]} 33. Nd2 {[%clk 0:00:04]}  Rc3 {[%clk 0:00:43]} 34. Re1 {[%clk 0:00:04]}  Rg4 {[%clk 0:00:34]} 35. Nf3 {[%clk 0:00:03]}  Re4 {[%clk 0:00:32]} 36. Rbe2 {[%clk 0:00:02]}  Rb4 {[%clk 0:00:32]} 37. Nxe5 {[%clk 0:00:02]}  Kh7 {[%clk 0:00:29]} 38. Rb2 {[%clk 0:00:02]}  Ra3+ {[%clk 0:00:29]} 39. Kb1 {[%clk 0:00:02]}  Rba4 {[%clk 0:00:29]} 40. Kc2 {[%clk 0:00:01]}  Re4 {[%clk 0:00:30]} 41. Nd3 {[%clk 0:00:01]}  Rh4 {[%clk 0:00:30]} 42. Kd2 {[%clk 0:00:02]}  Rxh2+ {[%clk 0:00:30]} 43. Re2 {[%clk 0:00:03]}  Rh1 {[%clk 0:00:29]} 44. Rc2 {[%clk 0:00:03]}  h4 {[%clk 0:00:27]} 45. Ne5 {[%clk 0:00:04]}  Ra5 {[%clk 0:00:24]} 46. Nf3 {[%clk 0:00:04]}  Rf5 {[%clk 0:00:23]} 47. Nd4 {[%clk 0:00:04]}  Rf8 {[%clk 0:00:23]} 48. Kd3 {[%clk 0:00:05]}  g5 {[%clk 0:00:22]} 49. Rh2 {[%clk 0:00:06]}  Rd1+ {[%clk 0:00:22]} 50. Ke4 {[%clk 0:00:06]}  Re8+ {[%clk 0:00:21]} 51. Kf3 {[%clk 0:00:06]}  Kg6 {[%clk 0:00:21]} 52. Rc6+ {[%clk 0:00:06]}  Kh5 {[%clk 0:00:20]} 53. Nf5 {[%clk 0:00:04]}  Rf1+ {[%clk 0:00:20]} 54. Rf2 {[%clk 0:00:05]}  g4+ {[%clk 0:00:20]} 55. Ke2 {[%clk 0:00:05]}  Rxf2+ {[%clk 0:00:21]} 56. Kxf2 {[%clk 0:00:06]}  Kg5 {[%clk 0:00:21]} 57. Nd4 {[%clk 0:00:06]}  Rf8+ {[%clk 0:00:19]} 58. Kg2 {[%clk 0:00:06]}  Re8 {[%clk 0:00:20]} 59. Rc5+ {[%clk 0:00:06]}  Kg6 {[%clk 0:00:20]} 60. Nf5 {[%clk 0:00:07]}  Kf6 {[%clk 0:00:16]} 61. Rb5 {[%clk 0:00:04]}  Rh8 {[%clk 0:00:16]} 62. Nd4 {[%clk 0:00:04]}  Re8 {[%clk 0:00:16]} 63. Rb3 {[%clk 0:00:03]}  Ke5 {[%clk 0:00:15]} 64. Ne2 {[%clk 0:00:03]}  Ke4 {[%clk 0:00:15]} 65. Nf4 {[%clk 0:00:03]}  Ra8 {[%clk 0:00:14]} 66. Rb2 {[%clk 0:00:02]}  Kxe3 {[%clk 0:00:13]} 67. Ng6 {[%clk 0:00:03]}  h3+ {[%clk 0:00:12]} 68. Kg3 {[%clk 0:00:04]}  Ra6 {[%clk 0:00:12]} 69. Nh4 {[%clk 0:00:03]}  Ra1 {[%clk 0:00:12]} 70. Kxg4 {[%clk 0:00:03]}  Rg1+ {[%clk 0:00:13]} 71. Kxh3 {[%clk 0:00:04]}  Kf4 {[%clk 0:00:13]} 72. Rf2+ {[%clk 0:00:03]}  Ke3 {[%clk 0:00:13]} 73. Rf8 {[%clk 0:00:04]}  Rg7 {[%clk 0:00:13]} 74. Nf5+ {[%clk 0:00:04]} 1-0


[Site "https://www.chess.com"]

[Event "Titled Tuesday Blitz February 07 Late 2023"]
[White "Kosakowski, Jakub"]
[Black "Preotu, Razvan"]
[WhiteFideId "1185080"]
[BlackFideId "2613280"]
[WhiteElo "2485"]
[BlackElo "2475"]
[Result "1-0"]
[Round "11"]
[TimeControl "180+2"]
[Date "2023.02.07"]
[WhiteClock "0:00:31"]
[BlackClock "0:00:10"]

1. d4 {[%clk 0:02:51]}  Nf6 {[%clk 0:02:56]} 2. Nf3 {[%clk 0:02:49]}  g6 {[%clk 0:02:56]} 3. c4 {[%clk 0:02:48]}  Bg7 {[%clk 0:02:57]} 4. g3 {[%clk 0:02:48]}  O-O {[%clk 0:02:56]} 5. Bg2 {[%clk 0:02:49]}  c6 {[%clk 0:02:56]} 6. O-O {[%clk 0:02:49]}  d5 {[%clk 0:02:57]} 7. Ne5 {[%clk 0:02:48]}  Nfd7 {[%clk 0:02:45]} 8. Nxd7 {[%clk 0:02:30]}  Bxd7 {[%clk 0:02:45]} 9. cxd5 {[%clk 0:02:29]}  cxd5 {[%clk 0:02:46]} 10. Nc3 {[%clk 0:02:29]}  e6 {[%clk 0:02:43]} 11. e4 {[%clk 0:02:20]}  dxe4 {[%clk 0:02:41]} 12. Nxe4 {[%clk 0:02:20]}  Bc6 {[%clk 0:02:36]} 13. Bg5 {[%clk 0:02:17]}  Qxd4 {[%clk 0:02:36]} 14. Qxd4 {[%clk 0:02:13]}  Bxd4 {[%clk 0:02:37]} 15. Rad1 {[%clk 0:02:11]}  Bxb2 {[%clk 0:02:31]} 16. Be7 {[%clk 0:01:36]}  Rc8 {[%clk 0:01:42]} 17. Rd2 {[%clk 0:01:18]}  Bg7 {[%clk 0:01:11]} 18. Rfd1 {[%clk 0:01:01]}  Bd5 {[%clk 0:00:46]} 19. Nd6 {[%clk 0:00:48]}  Rc7 {[%clk 0:00:46]} 20. Bg5 {[%clk 0:00:32]}  Bxg2 {[%clk 0:00:39]} 21. Kxg2 {[%clk 0:00:30]}  h6 {[%clk 0:00:20]} 22. Ne8 {[%clk 0:00:30]}  Rc8 {[%clk 0:00:16]} 23. Rd8 {[%clk 0:00:30]}  Rxd8 {[%clk 0:00:15]} 24. Rxd8 {[%clk 0:00:31]}  hxg5 {[%clk 0:00:10]} 25. Nf6# {[%clk 0:00:31]} 1-0


[Site "https://www.chess.com"]

[Event "Titled Tuesday Blitz February 07 Late 2023"]
[White "Urazayev, Arystanbek"]
[Black "Ismagilov, Damir"]
[WhiteFideId "13709810"]
[BlackFideId "34199982"]
[WhiteElo "2460"]
[BlackElo "2156"]
[Result "1/2-1/2"]
[Round "11"]
[TimeControl "180+2"]
[Date "2023.02.07"]
[WhiteClock "0:00:07"]
[BlackClock "0:00:09"]

1. e4 {[%clk 0:03:00]}  c5 {[%clk 0:03:00]} 2. Nf3 {[%clk 0:03:00]}  a6 {[%clk 0:03:00]} 3. c3 {[%clk 0:03:00]}  d5 {[%clk 0:02:58]} 4. exd5 {[%clk 0:03:00]}  Qxd5 {[%clk 0:02:59]} 5. d4 {[%clk 0:03:00]}  e6 {[%clk 0:02:59]} 6. Be3 {[%clk 0:03:01]}  cxd4 {[%clk 0:02:51]} 7. cxd4 {[%clk 0:03:01]}  Bb4+ {[%clk 0:02:51]} 8. Nc3 {[%clk 0:03:01]}  Qa5 {[%clk 0:02:52]} 9. Rc1 {[%clk 0:03:00]}  Nf6 {[%clk 0:02:44]} 10. Bd3 {[%clk 0:03:00]}  b5 {[%clk 0:02:27]} 11. O-O {[%clk 0:02:57]}  Bb7 {[%clk 0:02:26]} 12. a3 {[%clk 0:02:56]}  Bxc3 {[%clk 0:02:20]} 13. Rxc3 {[%clk 0:02:56]}  Nbd7 {[%clk 0:02:19]} 14. Bd2 {[%clk 0:02:44]}  Qb6 {[%clk 0:02:18]} 15. Rc1 {[%clk 0:02:42]}  O-O {[%clk 0:02:16]} 16. Re1 {[%clk 0:02:41]}  Rac8 {[%clk 0:02:14]} 17. Qe2 {[%clk 0:02:41]}  Rxc1 {[%clk 0:02:07]} 18. Rxc1 {[%clk 0:02:40]}  Rc8 {[%clk 0:02:04]} 19. Rd1 {[%clk 0:02:37]}  h6 {[%clk 0:01:58]} 20. h3 {[%clk 0:02:37]}  Bd5 {[%clk 0:01:57]} 21. Ne5 {[%clk 0:02:36]}  Qb7 {[%clk 0:01:51]} 22. f3 {[%clk 0:02:34]}  Bb3 {[%clk 0:01:46]} 23. Re1 {[%clk 0:02:33]}  Bc2 {[%clk 0:01:46]} 24. Ng4 {[%clk 0:01:38]}  Nxg4 {[%clk 0:01:34]} 25. hxg4 {[%clk 0:01:37]}  Bxd3 {[%clk 0:01:34]} 26. Qxd3 {[%clk 0:01:38]}  Qd5 {[%clk 0:01:31]} 27. Bc3 {[%clk 0:01:35]}  Nb6 {[%clk 0:01:22]} 28. Re5 {[%clk 0:01:34]}  Qc4 {[%clk 0:01:19]} 29. Qxc4 {[%clk 0:01:29]}  Rxc4 {[%clk 0:01:15]} 30. Rc5 {[%clk 0:01:28]}  Nd5 {[%clk 0:01:08]} 31. Rxc4 {[%clk 0:01:05]}  bxc4 {[%clk 0:01:07]} 32. Bd2 {[%clk 0:01:06]}  Kf8 {[%clk 0:01:05]} 33. Kf1 {[%clk 0:01:04]}  Ke7 {[%clk 0:01:05]} 34. Ke2 {[%clk 0:01:05]}  Kd7 {[%clk 0:01:04]} 35. Kd1 {[%clk 0:01:05]}  Kc6 {[%clk 0:01:04]} 36. Kc2 {[%clk 0:01:05]}  Ne7 {[%clk 0:01:01]} 37. Bb4 {[%clk 0:01:02]}  Ng6 {[%clk 0:01:00]} 38. g3 {[%clk 0:00:59]}  Kd5 {[%clk 0:01:00]} 39. Bc3 {[%clk 0:00:51]}  Ne7 {[%clk 0:00:58]} 40. b3 {[%clk 0:00:44]}  f5 {[%clk 0:00:51]} 41. bxc4+ {[%clk 0:00:38]}  Kxc4 {[%clk 0:00:52]} 42. Bb4 {[%clk 0:00:11]}  Nd5 {[%clk 0:00:47]} 43. Bf8 {[%clk 0:00:11]}  fxg4 {[%clk 0:00:46]} 44. fxg4 {[%clk 0:00:11]}  Ne3+ {[%clk 0:00:46]} 45. Kd2 {[%clk 0:00:11]}  Nxg4 {[%clk 0:00:47]} 46. Bxg7 {[%clk 0:00:11]}  h5 {[%clk 0:00:47]} 47. Ke2 {[%clk 0:00:11]}  a5 {[%clk 0:00:42]} 48. Kf3 {[%clk 0:00:11]}  Kb3 {[%clk 0:00:35]} 49. Bf8 {[%clk 0:00:10]}  Kc4 {[%clk 0:00:31]} 50. Ke4 {[%clk 0:00:08]}  Nf6+ {[%clk 0:00:28]} 51. Kf4 {[%clk 0:00:08]}  Kxd4 {[%clk 0:00:26]} 52. Bg7 {[%clk 0:00:09]}  e5+ {[%clk 0:00:26]} 53. Kf5 {[%clk 0:00:09]}  Ng4 {[%clk 0:00:25]} 54. Kg5 {[%clk 0:00:09]}  Ke4 {[%clk 0:00:22]} 55. Kxh5 {[%clk 0:00:08]}  Kf3 {[%clk 0:00:22]} 56. Kh4 {[%clk 0:00:08]}  e4 {[%clk 0:00:22]} 57. a4 {[%clk 0:00:08]}  e3 {[%clk 0:00:19]} 58. Bc3 {[%clk 0:00:09]}  e2 {[%clk 0:00:19]} 59. Bxa5 {[%clk 0:00:09]}  Ne3 {[%clk 0:00:18]} 60. Bd2 {[%clk 0:00:06]}  Nf5+ {[%clk 0:00:17]} 61. Kh3 {[%clk 0:00:04]}  Nxg3 {[%clk 0:00:18]} 62. a5 {[%clk 0:00:05]}  Ne4 {[%clk 0:00:18]} 63. Be1 {[%clk 0:00:05]}  Nc5 {[%clk 0:00:15]} 64. Kh4 {[%clk 0:00:06]}  Kg2 {[%clk 0:00:14]} 65. Kg4 {[%clk 0:00:06]}  Kf1 {[%clk 0:00:14]} 66. Bd2 {[%clk 0:00:06]}  Nb3 {[%clk 0:00:09]} 67. Bc3 {[%clk 0:00:06]}  Nxa5 {[%clk 0:00:09]} 68. Bxa5 {[%clk 0:00:06]}  e1=Q {[%clk 0:00:09]} 69. Bxe1 {[%clk 0:00:07]} 1/2-1/2


[Site "https://www.chess.com"]